[Event "Late-Titled-Tuesday-Blitz-July-09-2024"]
[Site "Chess.com"]
[Date "2024.07.09"]
[Round "5"]
[White "ReinisUz"]
[Black "GMRafpig"]
[Result "1/2-1/2"]
[WhiteElo "2555"]
[BlackElo "2769"]
[TimeControl "180+1"]
[EndTime "14:55:34 PDT"]
[Termination "Game drawn - insufficient material"]

1. c4 {[%clk 0:03:00.9]} 1... Nf6 {[%clk 0:02:58.9]} 2. Nc3 {[%clk 0:03:00.8]}
2... e5 {[%clk 0:02:55.2]} 3. g3 {[%clk 0:03:00.5]} 3... Bb4 {[%clk 0:02:53.7]}
4. Bg2 {[%clk 0:03:00.2]} 4... O-O {[%clk 0:02:52.8]} 5. e4 {[%clk 0:03:00.2]}
5... Bxc3 {[%clk 0:02:50.9]} 6. bxc3 {[%clk 0:03:00]} 6... c6 {[%clk 0:02:49.7]}
7. Ne2 {[%clk 0:02:59.9]} 7... d5 {[%clk 0:02:46.8]} 8. exd5 {[%clk 0:02:59.5]}
8... cxd5 {[%clk 0:02:47.2]} 9. cxd5 {[%clk 0:03:00.3]} 9... Nxd5 {[%clk
0:02:47.1]} 10. O-O {[%clk 0:03:00.6]} 10... Nc6 {[%clk 0:02:43.6]} 11. Qb3
{[%clk 0:02:33]} 11... Nb6 {[%clk 0:02:37.1]} 12. d4 {[%clk 0:02:31.3]} 12...
exd4 {[%clk 0:02:34.2]} 13. Nxd4 {[%clk 0:02:30.7]} 13... Nxd4 {[%clk
0:02:33.3]} 14. cxd4 {[%clk 0:02:31.1]} 14... Be6 {[%clk 0:02:32.9]} 15. Qe3
{[%clk 0:02:25]} 15... Bd5 {[%clk 0:02:30.5]} 16. Ba3 {[%clk 0:02:24.7]} 16...
Re8 {[%clk 0:02:28.8]} 17. Qf4 {[%clk 0:02:06.5]} 17... Bxg2 {[%clk 0:02:22]}
18. Kxg2 {[%clk 0:02:06]} 18... Nc4 {[%clk 0:02:04]} 19. Bb4 {[%clk 0:01:57]}
19... a5 {[%clk 0:01:35.2]} 20. Bc3 {[%clk 0:01:55.1]} 20... b5 {[%clk
0:01:31.6]} 21. a3 {[%clk 0:01:47.8]} 21... Rc8 {[%clk 0:01:27]} 22. Rfe1 {[%clk
0:01:43.9]} 22... Rxe1 {[%clk 0:01:22.2]} 23. Rxe1 {[%clk 0:01:44.8]} 23... Nxa3
{[%clk 0:01:17.7]} 24. Bb2 {[%clk 0:00:50.3]} 24... Nc4 {[%clk 0:01:15.3]} 25.
Ba1 {[%clk 0:00:50.5]} 25... b4 {[%clk 0:01:11]} 26. d5 {[%clk 0:00:49.1]} 26...
Qxd5+ {[%clk 0:01:10.9]} 27. Kg1 {[%clk 0:00:49.4]} 27... f6 {[%clk 0:01:01.2]}
28. Qg4 {[%clk 0:00:45.8]} 28... Rf8 {[%clk 0:00:19.9]} 29. Re7 {[%clk
0:00:44.4]} 29... g6 {[%clk 0:00:16.2]} 30. Qh4 {[%clk 0:00:34.5]} 30... Qd1+
{[%clk 0:00:16.1]} 31. Kg2 {[%clk 0:00:34.3]} 31... Qd5+ {[%clk 0:00:17]} 32.
Kg1 {[%clk 0:00:34.3]} 32... Rf7 {[%clk 0:00:15.7]} 33. Rxf7 {[%clk 0:00:15.4]}
33... Qxf7 {[%clk 0:00:14.9]} 34. Bxf6 {[%clk 0:00:16]} 34... b3 {[%clk
0:00:12.7]} 35. Bd4 {[%clk 0:00:16.1]} 35... Nd6 {[%clk 0:00:06]} 36. Qd8+
{[%clk 0:00:14.8]} 36... Ne8 {[%clk 0:00:06.5]} 37. Bb2 {[%clk 0:00:13.5]} 37...
a4 {[%clk 0:00:05.7]} 38. Qd4 {[%clk 0:00:13.6]} 38... Ng7 {[%clk 0:00:06]} 39.
Qxa4 {[%clk 0:00:13.2]} 39... h5 {[%clk 0:00:05.6]} 40. Qd4 {[%clk 0:00:11.9]}
40... Kh7 {[%clk 0:00:05.5]} 41. h4 {[%clk 0:00:12.1]} 41... Qb7 {[%clk
0:00:04.9]} 42. Kh2 {[%clk 0:00:12.1]} 42... Qf7 {[%clk 0:00:04.7]} 43. Qe5
{[%clk 0:00:12.3]} 43... Qb7 {[%clk 0:00:03.4]} 44. Qd4 {[%clk 0:00:12.2]} 44...
Qf7 {[%clk 0:00:03.6]} 45. Kg1 {[%clk 0:00:12.7]} 45... Qb7 {[%clk 0:00:02]} 46.
Kf1 {[%clk 0:00:12.4]} 46... Qf7 {[%clk 0:00:02.5]} 47. Ke2 {[%clk 0:00:12.7]}
47... Qe6+ {[%clk 0:00:03.2]} 48. Kd2 {[%clk 0:00:12.5]} 48... Qf7 {[%clk
0:00:03.9]} 49. Qxg7+ {[%clk 0:00:09.3]} 49... Qxg7 {[%clk 0:00:04]} 50. Bxg7
{[%clk 0:00:10.2]} 50... Kxg7 {[%clk 0:00:04.5]} 51. Kc3 {[%clk 0:00:10.9]}
51... Kf6 {[%clk 0:00:03.5]} 52. Kxb3 {[%clk 0:00:11.5]} 52... g5 {[%clk
0:00:04.2]} 53. hxg5+ {[%clk 0:00:04.3]} 53... Kxg5 {[%clk 0:00:04.5]} 54. f3
{[%clk 0:00:05]} 54... h4 {[%clk 0:00:03.7]} 55. gxh4+ {[%clk 0:00:05.6]} 55...
Kxh4 {[%clk 0:00:04.2]} 56. Kc4 {[%clk 0:00:06.2]} 56... Kg3 {[%clk 0:00:04.9]}
57. Kd4 {[%clk 0:00:07.1]} 57... Kxf3 {[%clk 0:00:05.3]} 1/2-1/2

[Event "Late-Titled-Tuesday-Blitz-July-09-2024"]
[Site "Chess.com"]
[Date "2024.07.09"]
[Round "5"]
[White "mishanick"]
[Black "ChessSwole"]
[Result "0-1"]
[WhiteElo "3085"]
[BlackElo "2710"]
[TimeControl "180+1"]
[EndTime "14:55:37 PDT"]
[Termination "ChessSwole won on time"]

1. d4 {[%clk 0:02:54.5]} 1... d5 {[%clk 0:02:56.4]} 2. c4 {[%clk 0:02:55.1]}
2... c6 {[%clk 0:02:56.6]} 3. Nf3 {[%clk 0:02:52.7]} 3... Nf6 {[%clk 0:02:56.7]}
4. Nc3 {[%clk 0:02:53.4]} 4... e6 {[%clk 0:02:56.3]} 5. g3 {[%clk 0:02:54.1]}
5... dxc4 {[%clk 0:02:54.6]} 6. Bg2 {[%clk 0:02:54.1]} 6... b5 {[%clk
0:02:50.9]} 7. O-O {[%clk 0:02:53.8]} 7... Nbd7 {[%clk 0:02:50.4]} 8. e4 {[%clk
0:02:52.3]} 8... Be7 {[%clk 0:02:43.8]} 9. a4 {[%clk 0:02:35.2]} 9... b4 {[%clk
0:02:39.1]} 10. e5 {[%clk 0:02:35.9]} 10... bxc3 {[%clk 0:02:33.3]} 11. exf6
{[%clk 0:02:35.6]} 11... Nxf6 {[%clk 0:02:32.8]} 12. bxc3 {[%clk 0:02:35.1]}
12... Nd5 {[%clk 0:02:26.6]} 13. Ne5 {[%clk 0:02:34.3]} 13... Bb7 {[%clk
0:02:22.8]} 14. Qg4 {[%clk 0:02:29.3]} 14... O-O {[%clk 0:02:07.7]} 15. Bd2
{[%clk 0:02:10.9]} 15... c5 {[%clk 0:02:03]} 16. dxc5 {[%clk 0:02:05.3]} 16...
Nf6 {[%clk 0:01:58.3]} 17. Qd4 {[%clk 0:01:34.3]} 17... Bxg2 {[%clk 0:01:53.3]}
18. Kxg2 {[%clk 0:01:33.2]} 18... Bxc5 {[%clk 0:01:50.4]} 19. Qxd8 {[%clk
0:01:26.6]} 19... Rfxd8 {[%clk 0:01:49.2]} 20. Bg5 {[%clk 0:01:26]} 20... h6
{[%clk 0:01:32]} 21. Bxf6 {[%clk 0:01:25.6]} 21... gxf6 {[%clk 0:01:32.9]} 22.
Nxc4 {[%clk 0:01:25.5]} 22... Rd3 {[%clk 0:01:31.8]} 23. Rac1 {[%clk 0:01:21.8]}
23... Rc8 {[%clk 0:01:31]} 24. Rfd1 {[%clk 0:01:16.6]} 24... Rxd1 {[%clk
0:01:30]} 25. Rxd1 {[%clk 0:01:17.5]} 25... Bf8 {[%clk 0:01:13]} 26. Rd4 {[%clk
0:01:17]} 26... f5 {[%clk 0:01:12.8]} 27. a5 {[%clk 0:00:54.6]} 27... Bg7 {[%clk
0:01:01.5]} 28. Nd6 {[%clk 0:00:54.9]} 28... Bxd4 {[%clk 0:00:39.7]} 29. Nxc8
{[%clk 0:00:54.4]} 29... Bxc3 {[%clk 0:00:40.3]} 30. a6 {[%clk 0:00:54.4]} 30...
Bd4 {[%clk 0:00:39.7]} 31. Ne7+ {[%clk 0:00:54.3]} 31... Kf8 {[%clk 0:00:38.1]}
32. Nc6 {[%clk 0:00:55]} 32... Bc5 {[%clk 0:00:37.9]} 33. f4 {[%clk 0:00:48.8]}
33... Ke8 {[%clk 0:00:36.4]} 34. Kf3 {[%clk 0:00:45.8]} 34... f6 {[%clk
0:00:34]} 35. g4 {[%clk 0:00:46.2]} 35... Kd7 {[%clk 0:00:29]} 36. Na5 {[%clk
0:00:46.4]} 36... Kc7 {[%clk 0:00:25.3]} 37. h4 {[%clk 0:00:33]} 37... Kb6
{[%clk 0:00:22.9]} 38. Nb3 {[%clk 0:00:33.2]} 38... Bd6 {[%clk 0:00:18.4]} 39.
Nd4 {[%clk 0:00:14.4]} 39... fxg4+ {[%clk 0:00:17.4]} 40. Kxg4 {[%clk
0:00:15.3]} 40... e5 {[%clk 0:00:17.2]} 41. Nf5 {[%clk 0:00:14.2]} 41... Bf8
{[%clk 0:00:17.1]} 42. Ne3 {[%clk 0:00:09.1]} 42... exf4 {[%clk 0:00:13.1]} 43.
Nd5+ {[%clk 0:00:08.4]} 43... Kxa6 {[%clk 0:00:12.2]} 44. Nxf6 {[%clk
0:00:09.1]} 44... Bd6 {[%clk 0:00:10.8]} 45. Ne4 {[%clk 0:00:06.6]} 45... Be7
{[%clk 0:00:09.5]} 46. h5 {[%clk 0:00:05]} 46... Kb5 {[%clk 0:00:07.4]} 47. Kxf4
{[%clk 0:00:04.4]} 47... a5 {[%clk 0:00:07.8]} 48. Ke3 {[%clk 0:00:02]} 48...
Kc4 {[%clk 0:00:06]} 49. Kd2 {[%clk 0:00:02]} 49... a4 {[%clk 0:00:05.6]} 50.
Kc2 {[%clk 0:00:01.4]} 50... a3 {[%clk 0:00:05.6]} 51. Nd2+ {[%clk 0:00:02]}
51... Kd4 {[%clk 0:00:05]} 52. Kb3 {[%clk 0:00:01.9]} 52... Ke3 {[%clk
0:00:04.7]} 53. Nc4+ {[%clk 0:00:01.5]} 53... Kf4 {[%clk 0:00:05.3]} 0-1

[Event "Late-Titled-Tuesday-Blitz-July-09-2024"]
[Site "Chess.com"]
[Date "2024.07.09"]
[Round "5"]
[White "PNEPaul"]
[Black "norwaytoadog"]
[Result "0-1"]
[WhiteElo "1887"]
[BlackElo "2328"]
[TimeControl "180+1"]
[EndTime "14:55:37 PDT"]
[Termination "norwaytoadog won on time"]

1. e4 {[%clk 0:03:00.9]} 1... e5 {[%clk 0:02:58.1]} 2. Nf3 {[%clk 0:02:59.9]}
2... Nc6 {[%clk 0:02:58.8]} 3. Bc4 {[%clk 0:02:59.7]} 3... Nf6 {[%clk
0:02:58.7]} 4. d4 {[%clk 0:02:59.5]} 4... exd4 {[%clk 0:02:57.7]} 5. O-O {[%clk
0:02:59.3]} 5... Nxe4 {[%clk 0:02:57.7]} 6. Re1 {[%clk 0:02:59]} 6... d5 {[%clk
0:02:58.1]} 7. Bxd5 {[%clk 0:02:59.3]} 7... Qxd5 {[%clk 0:02:58.7]} 8. Nc3
{[%clk 0:02:59.2]} 8... Qd7 {[%clk 0:02:58.3]} 9. Nxe4 {[%clk 0:02:59.2]} 9...
Be7 {[%clk 0:02:57.2]} 10. Bg5 {[%clk 0:02:51.3]} 10... O-O {[%clk 0:02:55.6]}
11. Bxe7 {[%clk 0:02:50.1]} 11... Qxe7 {[%clk 0:02:50.7]} 12. Nxd4 {[%clk
0:02:49]} 12... Bd7 {[%clk 0:02:51.1]} 13. Ng3 {[%clk 0:02:37.2]} 13... Qc5
{[%clk 0:02:35.2]} 14. Nb3 {[%clk 0:02:33.6]} 14... Qd6 {[%clk 0:02:14.7]} 15.
Qxd6 {[%clk 0:02:19]} 15... cxd6 {[%clk 0:02:15.6]} 16. Rad1 {[%clk 0:02:18.5]}
16... Be6 {[%clk 0:02:04.2]} 17. Rxd6 {[%clk 0:02:16.5]} 17... Nb4 {[%clk
0:02:03.1]} 18. c3 {[%clk 0:01:50.2]} 18... Nd5 {[%clk 0:01:01.4]} 19. Nc5
{[%clk 0:01:41]} 19... Nf4 {[%clk 0:01:00]} 20. Nxe6 {[%clk 0:01:32.8]} 20...
Nxe6 {[%clk 0:00:48.5]} 21. Rd7 {[%clk 0:01:31.7]} 21... Rab8 {[%clk 0:00:43.9]}
22. f3 {[%clk 0:01:30.9]} 22... Nc5 {[%clk 0:00:36.9]} 23. Rd2 {[%clk
0:01:25.5]} 23... Rfe8 {[%clk 0:00:33.5]} 24. Rxe8+ {[%clk 0:01:21.3]} 24...
Rxe8 {[%clk 0:00:34.4]} 25. Kf2 {[%clk 0:01:19.8]} 25... g6 {[%clk 0:00:33.5]}
26. Ne2 {[%clk 0:01:07.1]} 26... f5 {[%clk 0:00:32.8]} 27. Nd4 {[%clk 0:00:56]}
27... Rd8 {[%clk 0:00:30.1]} 28. g3 {[%clk 0:00:41.5]} 28... Kf7 {[%clk
0:00:29.1]} 29. h4 {[%clk 0:00:41.2]} 29... Ne6 {[%clk 0:00:23]} 30. Ke2 {[%clk
0:00:29]} 30... Re8 {[%clk 0:00:21]} 31. Nxe6 {[%clk 0:00:28.3]} 31... Rxe6+
{[%clk 0:00:20.9]} 32. Kf2 {[%clk 0:00:28.4]} 32... Rb6 {[%clk 0:00:20]} 33. b3
{[%clk 0:00:27.2]} 33... h6 {[%clk 0:00:18.8]} 34. c4 {[%clk 0:00:27.1]} 34...
Ra6 {[%clk 0:00:17.9]} 35. Ke2 {[%clk 0:00:26.1]} 35... Ke6 {[%clk 0:00:17.9]}
36. Kf2 {[%clk 0:00:26.2]} 36... Rb6 {[%clk 0:00:17.6]} 37. Ke2 {[%clk
0:00:26.1]} 37... a5 {[%clk 0:00:18]} 38. Kf2 {[%clk 0:00:23.4]} 38... a4 {[%clk
0:00:18.1]} 39. Re2+ {[%clk 0:00:23.1]} 39... Kf6 {[%clk 0:00:17.8]} 40. Re3
{[%clk 0:00:20.7]} 40... a3 {[%clk 0:00:16.7]} 41. Rd3 {[%clk 0:00:18.6]} 41...
Re6 {[%clk 0:00:16.6]} 42. Rd2 {[%clk 0:00:18.2]} 42... Rb6 {[%clk 0:00:16.4]}
43. Re2 {[%clk 0:00:17.5]} 43... Rd6 {[%clk 0:00:16.4]} 44. Ke3 {[%clk
0:00:16.4]} 44... Rd1 {[%clk 0:00:16.2]} 45. Rd2 {[%clk 0:00:14.3]} 45... Re1+
{[%clk 0:00:15.4]} 46. Kd3 {[%clk 0:00:13.5]} 46... Rf1 {[%clk 0:00:15.2]} 47.
Ke3 {[%clk 0:00:12.6]} 47... Rb1 {[%clk 0:00:14.7]} 48. Kd3 {[%clk 0:00:11.6]}
48... Rg1 {[%clk 0:00:14.5]} 49. Kc3 {[%clk 0:00:05]} 49... Rxg3 {[%clk
0:00:14.2]} 50. Kb4 {[%clk 0:00:05.1]} 50... Rxf3 {[%clk 0:00:13.8]} 51. Kxa3
{[%clk 0:00:04.7]} 51... g5 {[%clk 0:00:13.6]} 52. hxg5+ {[%clk 0:00:03.7]}
52... hxg5 {[%clk 0:00:14.1]} 53. Ka4 {[%clk 0:00:03.8]} 53... g4 {[%clk
0:00:14]} 54. b4 {[%clk 0:00:04]} 54... g3 {[%clk 0:00:13.9]} 55. c5 {[%clk
0:00:02.8]} 55... Rf2 {[%clk 0:00:13.9]} 56. Rd3 {[%clk 0:00:02.9]} 56... f4
{[%clk 0:00:13.6]} 57. b5 {[%clk 0:00:03.2]} 57... g2 {[%clk 0:00:13.4]} 58. Rd1
{[%clk 0:00:02.6]} 58... Rf1 {[%clk 0:00:13.5]} 0-1

[Event "Late-Titled-Tuesday-Blitz-July-09-2024"]
[Site "Chess.com"]
[Date "2024.07.09"]
[Round "5"]
[White "jk13"]
[Black "honestgames"]
[Result "1-0"]
[WhiteElo "2674"]
[BlackElo "2821"]
[TimeControl "180+1"]
[EndTime "14:55:39 PDT"]
[Termination "jk13 won by resignation"]

1. e4 {[%clk 0:02:44.9]} 1... c5 {[%clk 0:03:00.1]} 2. c3 {[%clk 0:02:44.2]}
2... Nf6 {[%clk 0:02:59.9]} 3. e5 {[%clk 0:02:44.2]} 3... Nd5 {[%clk 0:03:00.2]}
4. Bc4 {[%clk 0:02:38.3]} 4... Nb6 {[%clk 0:03:00.2]} 5. Bb3 {[%clk 0:02:38.2]}
5... c4 {[%clk 0:03:00.2]} 6. Bc2 {[%clk 0:02:38.1]} 6... d6 {[%clk 0:02:57.6]}
7. exd6 {[%clk 0:02:38.4]} 7... Qxd6 {[%clk 0:02:57.5]} 8. Nf3 {[%clk
0:02:39.3]} 8... Qe6+ {[%clk 0:02:56.6]} 9. Kf1 {[%clk 0:02:38.5]} 9... g6
{[%clk 0:02:47.9]} 10. h4 {[%clk 0:02:39.1]} 10... Qd5 {[%clk 0:02:33.1]} 11.
Qe2 {[%clk 0:02:35.8]} 11... Bf5 {[%clk 0:02:26.5]} 12. Bxf5 {[%clk 0:02:30.9]}
12... gxf5 {[%clk 0:02:23.9]} 13. a4 {[%clk 0:02:19.1]} 13... Nc6 {[%clk
0:02:22.1]} 14. Na3 {[%clk 0:02:17.7]} 14... a6 {[%clk 0:02:12.8]} 15. Nc2
{[%clk 0:02:12]} 15... e6 {[%clk 0:01:47.4]} 16. Ne3 {[%clk 0:02:10]} 16... Qd3
{[%clk 0:01:46.7]} 17. a5 {[%clk 0:02:02.3]} 17... Nd5 {[%clk 0:01:32.7]} 18.
Nxc4 {[%clk 0:01:47.3]} 18... Nf4 {[%clk 0:01:18.9]} 19. Qxd3 {[%clk 0:01:46.7]}
19... Nxd3 {[%clk 0:01:19.8]} 20. Ne1 {[%clk 0:01:44.2]} 20... Nc5 {[%clk
0:01:13.3]} 21. b4 {[%clk 0:01:33.1]} 21... Ne4 {[%clk 0:01:09.9]} 22. Bb2
{[%clk 0:01:17.9]} 22... O-O-O {[%clk 0:00:50.4]} 23. d3 {[%clk 0:01:15.2]}
23... Nf6 {[%clk 0:00:40.3]} 24. Rd1 {[%clk 0:01:11.8]} 24... Nd5 {[%clk
0:00:36.9]} 25. Nf3 {[%clk 0:01:04.8]} 25... Bg7 {[%clk 0:00:36.2]} 26. d4
{[%clk 0:01:05.4]} 26... h6 {[%clk 0:00:28.1]} 27. g3 {[%clk 0:00:57.9]} 27...
Kc7 {[%clk 0:00:27.2]} 28. Ke2 {[%clk 0:00:56.1]} 28... Rhe8 {[%clk 0:00:25.9]}
29. Rhe1 {[%clk 0:00:56.6]} 29... f6 {[%clk 0:00:22.9]} 30. Ne3 {[%clk
0:00:50.1]} 30... f4 {[%clk 0:00:12.4]} 31. Nxd5+ {[%clk 0:00:45.9]} 31... exd5+
{[%clk 0:00:13.3]} 32. Kd3 {[%clk 0:00:46.4]} 32... fxg3 {[%clk 0:00:11.6]} 33.
fxg3 {[%clk 0:00:47.3]} 33... h5 {[%clk 0:00:09.5]} 34. Bc1 {[%clk 0:00:47.6]}
34... Kd7 {[%clk 0:00:09]} 35. Bf4 {[%clk 0:00:46.3]} 35... Ne7 {[%clk
0:00:08.9]} 36. Ng1 {[%clk 0:00:33.9]} 36... Nf5 {[%clk 0:00:09.2]} 37. Nf3
{[%clk 0:00:23.7]} 37... Bf8 {[%clk 0:00:08]} 38. Re2 {[%clk 0:00:15]} 38...
Rxe2 {[%clk 0:00:07.6]} 39. Kxe2 {[%clk 0:00:15]} 39... Re8+ {[%clk 0:00:07.6]}
40. Kf2 {[%clk 0:00:15.2]} 40... Bd6 {[%clk 0:00:08.5]} 41. Bxd6 {[%clk
0:00:15.4]} 41... Kxd6 {[%clk 0:00:08.4]} 42. Re1 {[%clk 0:00:14.8]} 42... Rc8
{[%clk 0:00:08.7]} 43. Rc1 {[%clk 0:00:14.4]} 43... Rg8 {[%clk 0:00:08.9]} 44.
Rg1 {[%clk 0:00:14.1]} 44... Kc6 {[%clk 0:00:08.4]} 45. Nd2 {[%clk 0:00:12.8]}
45... Re8 {[%clk 0:00:06.7]} 46. Nf1 {[%clk 0:00:12.5]} 46... Kb5 {[%clk
0:00:06.2]} 47. g4 {[%clk 0:00:12.3]} 47... hxg4 {[%clk 0:00:05.3]} 48. Rxg4
{[%clk 0:00:13.2]} 48... Kc4 {[%clk 0:00:05.4]} 49. Rf4 {[%clk 0:00:13.7]} 49...
Nd6 {[%clk 0:00:05.1]} 50. Ne3+ {[%clk 0:00:11.7]} 50... Kxc3 {[%clk 0:00:03.9]}
51. Nxd5+ {[%clk 0:00:12.3]} 51... Kc4 {[%clk 0:00:03]} 52. Nxf6 {[%clk
0:00:13.2]} 52... Rh8 {[%clk 0:00:03]} 53. Kf3 {[%clk 0:00:13.5]} 53... Nb5
{[%clk 0:00:03]} 54. d5+ {[%clk 0:00:13.8]} 54... Kd3 {[%clk 0:00:02.6]} 55. h5
{[%clk 0:00:13.9]} 55... Nd4+ {[%clk 0:00:02.9]} 56. Kg4 {[%clk 0:00:14.6]}
56... Nc2 {[%clk 0:00:02.9]} 57. Kf5 {[%clk 0:00:14.5]} 57... Ne3+ {[%clk
0:00:03.4]} 58. Kg6 {[%clk 0:00:15]} 58... Rd8 {[%clk 0:00:02.5]} 59. h6 {[%clk
0:00:15.1]} 59... Nc4 {[%clk 0:00:02.3]} 60. h7 {[%clk 0:00:15.2]} 60... Ne5+
{[%clk 0:00:02.4]} 61. Kg7 {[%clk 0:00:15.8]} 61... Ke3 {[%clk 0:00:01]} 62.
Re4+ {[%clk 0:00:16.3]} 62... Kd3 {[%clk 0:00:01.4]} 63. Rxe5 {[%clk 0:00:17.2]}
1-0

[Event "Late-Titled-Tuesday-Blitz-July-09-2024"]
[Site "Chess.com"]
[Date "2024.07.09"]
[Round "5"]
[White "Bauman_Guy"]
[Black "tusplingher"]
[Result "1/2-1/2"]
[WhiteElo "2919"]
[BlackElo "2680"]
[TimeControl "180+1"]
[EndTime "14:55:51 PDT"]
[Termination "Game drawn by repetition"]

1. e4 {[%clk 0:03:00.9]} 1... c5 {[%clk 0:03:00]} 2. Nf3 {[%clk 0:03:00.7]} 2...
e6 {[%clk 0:02:59.7]} 3. d4 {[%clk 0:03:01.1]} 3... cxd4 {[%clk 0:03:00.6]} 4.
Nxd4 {[%clk 0:03:01.6]} 4... Nc6 {[%clk 0:03:00.8]} 5. Nc3 {[%clk 0:03:02.1]}
5... Nf6 {[%clk 0:03:01]} 6. Ndb5 {[%clk 0:03:02.6]} 6... Bb4 {[%clk 0:02:59.4]}
7. a3 {[%clk 0:03:02.5]} 7... Bxc3+ {[%clk 0:02:58.7]} 8. Nxc3 {[%clk
0:03:03.4]} 8... d5 {[%clk 0:02:58.8]} 9. Bd3 {[%clk 0:03:04]} 9... O-O {[%clk
0:02:57.5]} 10. O-O {[%clk 0:03:03.2]} 10... dxe4 {[%clk 0:02:56.6]} 11. Nxe4
{[%clk 0:03:03.2]} 11... Nxe4 {[%clk 0:02:56.8]} 12. Bxe4 {[%clk 0:03:04.1]}
12... Qc7 {[%clk 0:02:53]} 13. Re1 {[%clk 0:02:53.4]} 13... Bd7 {[%clk
0:02:48.1]} 14. b3 {[%clk 0:02:42.9]} 14... e5 {[%clk 0:02:42.7]} 15. Bb2 {[%clk
0:02:41.5]} 15... Rad8 {[%clk 0:02:31.2]} 16. Qh5 {[%clk 0:02:34.5]} 16... g6
{[%clk 0:02:30.2]} 17. Qh6 {[%clk 0:02:27.1]} 17... Nd4 {[%clk 0:02:22.6]} 18.
Bxd4 {[%clk 0:02:09.8]} 18... exd4 {[%clk 0:02:20]} 19. Rad1 {[%clk 0:02:10.5]}
19... Bc6 {[%clk 0:02:17.2]} 20. Bd3 {[%clk 0:02:10.4]} 20... Rfe8 {[%clk
0:02:16.7]} 21. Qh4 {[%clk 0:02:07.4]} 21... Qd6 {[%clk 0:02:08]} 22. b4 {[%clk
0:02:02.9]} 22... Qd5 {[%clk 0:01:58.6]} 23. f3 {[%clk 0:02:01.7]} 23... Qd6
{[%clk 0:01:54.3]} 24. Qf2 {[%clk 0:01:55.4]} 24... Rxe1+ {[%clk 0:01:48.9]} 25.
Rxe1 {[%clk 0:01:55.1]} 25... Re8 {[%clk 0:01:46.5]} 26. Rd1 {[%clk 0:01:53.5]}
26... Ba4 {[%clk 0:01:42.9]} 27. Be4 {[%clk 0:01:42.3]} 27... Rd8 {[%clk
0:01:35.9]} 28. Bxb7 {[%clk 0:01:39.9]} 28... Qc7 {[%clk 0:01:32.3]} 29. Be4
{[%clk 0:01:39.6]} 29... Qc3 {[%clk 0:01:32.8]} 30. h4 {[%clk 0:01:16.1]} 30...
Qxa3 {[%clk 0:01:30.1]} 31. Qd2 {[%clk 0:01:16.7]} 31... Qb2 {[%clk 0:01:24]}
32. h5 {[%clk 0:01:11.6]} 32... Rc8 {[%clk 0:00:49.7]} 33. Qxd4 {[%clk
0:00:42.7]} 33... Qxd4+ {[%clk 0:00:47.9]} 34. Rxd4 {[%clk 0:00:43.6]} 34...
Bxc2 {[%clk 0:00:41.4]} 35. Bxc2 {[%clk 0:00:43]} 35... Rxc2 {[%clk 0:00:42]}
36. h6 {[%clk 0:00:43.9]} 36... Rc8 {[%clk 0:00:39.7]} 37. Rd7 {[%clk
0:00:43.1]} 37... Ra8 {[%clk 0:00:37.6]} 38. Kf2 {[%clk 0:00:41]} 38... Kf8
{[%clk 0:00:37.6]} 39. Kg3 {[%clk 0:00:38.9]} 39... Rb8 {[%clk 0:00:30.3]} 40.
Rxa7 {[%clk 0:00:38.2]} 40... Rxb4 {[%clk 0:00:29.8]} 41. Ra8+ {[%clk
0:00:38.9]} 41... Ke7 {[%clk 0:00:30.3]} 42. Rh8 {[%clk 0:00:39.8]} 42... Kf6
{[%clk 0:00:29.2]} 43. Rxh7 {[%clk 0:00:40.1]} 43... Rb8 {[%clk 0:00:29]} 44.
Kg4 {[%clk 0:00:28.3]} 44... Rd8 {[%clk 0:00:25.1]} 45. f4 {[%clk 0:00:25.1]}
45... Rc8 {[%clk 0:00:21]} 46. Kh4 {[%clk 0:00:25.1]} 46... Rc4 {[%clk
0:00:15.4]} 47. g3 {[%clk 0:00:16.7]} 47... g5+ {[%clk 0:00:15.4]} 48. Kg4
{[%clk 0:00:16.3]} 48... gxf4 {[%clk 0:00:15.5]} 49. gxf4 {[%clk 0:00:16.3]}
49... Rc1 {[%clk 0:00:15.4]} 50. Rh8 {[%clk 0:00:13.7]} 50... Rg1+ {[%clk
0:00:15.3]} 51. Kf3 {[%clk 0:00:13.6]} 51... Rh1 {[%clk 0:00:15.7]} 52. Ke4
{[%clk 0:00:13.4]} 52... Kg6 {[%clk 0:00:15.9]} 53. Ke5 {[%clk 0:00:13]} 53...
Rxh6 {[%clk 0:00:13]} 54. Rg8+ {[%clk 0:00:13.2]} 54... Kh7 {[%clk 0:00:12.5]}
55. Rg2 {[%clk 0:00:12.5]} 55... Rg6 {[%clk 0:00:12.7]} 56. Rd2 {[%clk
0:00:10.6]} 56... Kg7 {[%clk 0:00:11.7]} 57. f5 {[%clk 0:00:11.1]} 57... Rg5
{[%clk 0:00:11.6]} 58. Rd8 {[%clk 0:00:09.4]} 58... Rg1 {[%clk 0:00:09.7]} 59.
f6+ {[%clk 0:00:09.9]} 59... Kh7 {[%clk 0:00:10]} 60. Rf8 {[%clk 0:00:10.4]}
60... Re1+ {[%clk 0:00:09]} 61. Kf5 {[%clk 0:00:10.8]} 61... Rf1+ {[%clk
0:00:08.7]} 62. Ke5 {[%clk 0:00:11.4]} 62... Re1+ {[%clk 0:00:08.9]} 63. Kf5
{[%clk 0:00:11]} 63... Rf1+ {[%clk 0:00:09.1]} 64. Ke5 {[%clk 0:00:11.1]} 64...
Re1+ {[%clk 0:00:09.4]} 1/2-1/2